Cogmind - Beta 14 @@@ ROGUE MODE // 2024.08.16 @ 17:05:24 Player: Adrenozin Result: Destroyed by G-34 Mercenary with Small Laser Performance ------------- Evolutions (1) 500 Regions Visited (2) 400 Robots Destroyed (18) 90 Value Destroyed (410) 410 Prototype IDs (0) 0 Alien Tech Used (0) 0 Bonus (0) 0 TOTAL SCORE: 1400 Bonus ------- None Cogmind --------- Core Integrity 0/400 Matter 300/300 Energy 99/100 System Corruption 2% Temperature Cool (6) Movement Core (450) Ox8 Location -9/Materials Parts ------- > --- POWER (1) -------- (None) > --- PROPULSION (3) --- (None) > --- UTILITY (3) ------ Small Storage Unit Large Storage Unit > --- WEAPON (2) ------- (None) > --- INVENTORY (15) --- Ion Engine Ion Engine Light Ion Engine Aluminum Leg Grenade Launcher Peak State ------------ > --- POWER ------------ Ion Engine > --- PROPULSION ------- Aluminum Leg Aluminum Leg Aluminum Leg > --- UTILITY ---------- Small Storage Unit Large Storage Unit > --- WEAPON ----------- Small Laser Light Assault Rifle > --- INVENTORY -------- Ion Engine Ion Engine Light Ion Engine Aluminum Leg EM Pulse Gun Grenade Launcher [Rating: 8] Favorites ----------- Power Ion Engine Engine Ion Engine Propulsion Aluminum Leg Leg Aluminum Leg Utility Small Storage Unit Storage Small Storage Unit Weapon Small Laser Energy Gun Small Laser Ballistic Gun Light Assault Rifle Launcher Grenade Launcher Build | -11 -10 -9 ------- Run | Yrd Mat Mat Slots Evolved 2 | . . 2 Power . | . . . Propulsion 1 | . . 1 Utility 1 | . . 1 Weapon . | . . . Parts Attached 17 | 6 2 9 Power 4 | 1 . 3 Engine 4 | 1 . 3 Core . | . . . Reactor . | . . . Propulsion 6 | 2 . 4 Treads . | . . . Leg 6 | 2 . 4 Wheel . | . . . Hover . | . . . Flight . | . . . Utility 2 | 1 . 1 Device . | . . . Storage 2 | 1 . 1 Processor . | . . . Hackware . | . . . Protection . | . . . Artifact . | . . . Weapon 5 | 2 2 1 Energy Gun 2 | 1 . 1 Energy Cannon . | . . . Ballistic Gun 2 | 1 1 . Ballistic Cannon . | . . . Launcher 1 | . 1 . Special Weapon . | . . . Impact Weapon . | . . . Slashing Weapon . | . . . Piercing Weapon . | . . . Special Melee Weapon . | . . . Unidentified Prototypes . | . . . Parts Lost 9 | . . 9 Power 1 | . . 1 Propulsion 5 | . . 5 Utility . | . . . Weapon 3 | . . 3 Highest Loss Streak 4 | . . 4 To Critical Strikes . | . . . Average Slot Usage (%) 69 | . 85 61 Engine 10 | . 14 8 Leg 21 | . 28 18 Storage 16 | . 14 17 Energy Gun 11 | . 14 10 Ballistic Gun 8 | . 12 6 Peak Build Rating 8 | 6 6 8 Average Rating 5 | 4 6 5 On Entrance 4 | . 6 6 Naked Turns . | . . . Heaviest Build 33 | 12 14 33 Greatest Support 30 | 20 20 30 Greatest Overweight (x) 10 | 3 . 10 Average Overweight (x) . | . . 1 Largest Inventory Capacity 15 | 8 8 15 Average Capacity 10 | 7 8 11 Most Carried 6 | 2 4 6 Average Carried 3 | 1 2 4 Final Capacity 15 | 8 8 15 Final Carried 5 | 2 4 5 Class Distribution -------------------- 83% | Mutant 16% | Scavenger-Mutant Dominant Class ---------------- Mutant | -10/Materials Mutant | -9/Materials Resources | -11 -10 -9 ----------- Run | Yrd Mat Mat Matter Collected 445 | 239 29 177 Remotely . | . . . Salvage Created 452 | . 80 372 Parts 37 | . 12 25 Haulers Intercepted . | . . . Recyclers Shooed 4 | . 2 2 Parts Field Recycled . | . . . Retrieved Matter . | . . . Parts Self-Destructed . | . . . Prevented . | . . . Kills | -11 -10 -9 ------- Run | Yrd Mat Mat Combat Hostiles Destroyed 17 | . 5 12 Guns 14 | . 3 11 AOE 2 | . 2 . Classes Destroyed 4 | . 3 1 Operator 1 | . 1 . Swarmer 9 | . 3 6 Grunt 6 | . 2 4 Sentry 2 | . . 2 Best Kill Streak 6 | . 3 6 Combat Bots Only 6 | . 3 6 Max Kills in Single Turn 2 | . 1 2 Gunslinging 1 | . . 1 Exploded 1 | . 1 . Melee . | . . . Uniques/NPCs Destroyed . | . . . Combat | -11 -10 -9 -------- Run | Yrd Mat Mat Hostile Shots Fired 165 | . 28 137 Missed 39 | . 7 32 Damage Taken 1456 | . 182 1274 Core 438 | . 34 404 Absorbed by Shields . | . . . Core Remaining (%) 93 | 100 86 . Volleys Fired 56 | . 16 40 Largest 2 | . 2 2 Hottest 80 | . 70 80 Shots Fired 99 | . 32 67 Gun 92 | . 25 67 Cannon . | . . . Launcher 7 | . 7 . Special . | . . . Kinetic 31 | . 9 22 Thermal 49 | . 16 33 Explosive 7 | . 7 . Electromagnetic 12 | . . 12 Robot Hit Streak 23 | . 7 23 Robot Miss Streak 3 | . 3 3 Penetration Max . | . . . Secondary Targets 2 | . 1 1 Max Gunslinging Chain 1 | . 1 1 Shots Hit Robots 64 | . 20 44 Core Hits 36 | . 13 23 Critical Kills . | . . . Critical Parts Destroyed . | . . . Critical Strikes . | . . . Melee Attacks . | . . . Impact . | . . . Slashing . | . . . Piercing . | . . . Sneak Attacks . | . . . Combat Hostiles . | . . . Follow-up Attacks . | . . . Damage Inflicted 913 | . 414 499 Guns 626 | . 143 483 Cannons . | . . . Explosions 271 | . 271 . Melee . | . . . Ramming 16 | . . 16 Kinetic 146 | . 44 102 Thermal 381 | . 99 282 Explosive 271 | . 271 . Electromagnetic 99 | . . 99 Impact . | . . . Slashing . | . . . Piercing . | . . . Highest Corruption 2 | . . 2 Average Corruption 1 | . . 1 Corruption Purged . | . . . Corruption Blocked . | . . . Overload Shots . | . . . Overflow Damage . | . . . Projectiles . | . . . Explosions . | . . . Melee . | . . . Knockbacks . | . . . Impact . | . . . Kinetic . | . . . Secondary . | . . . Self-Inflicted Damage 6 | . 5 1 Shots 1 | . 1 . Rammed 17 | . . 17 Targets Rammed 20 | . . 20 Kicked 3 | . . 3 Crushed . | . . . Highest Temperature 75 | . 75 54 Average Temperature 24 | . 29 21 Received Heat Transfer 444 | . 12 432 Siege Activations . | . . . Robots Corrupted . | . . . Combat Hostiles . | . . . Parts Fried . | . . . Impact Corruptions . | . . . Robots Melted 1 | . . 1 Combat Hostiles 1 | . . 1 Parts Melted 1 | . . 1 Heat Transferred 850 | . 225 625 Parts Sabotaged . | . . . Parts Stolen . | . . . Parts Stripped . | . . . Power Chain Reactions . | . . . Alert | -11 -10 -9 ------- Run | Yrd Mat Mat Peak Influence 367 | . 302 367 Initial 127 | . . 127 Average 160 | . 98 208 Maximum Alert Level 1 | . 1 1 Low Security (%) 70 | 100 86 58 Level 1 29 | . 13 41 Level 2 . | . . . Level 3 . | . . . Level 4 . | . . . Level 5 . | . . . High Security . | . . . Max Security . | . . . Squads Dispatched 1 | . 1 . Investigation . | . . . Extermination . | . . . Reinforcement 1 | . 1 . Assault . | . . . Garrison . | . . . Intercept . | . . . Searches Triggered . | . . . Construction Impeded . | . . . Haulers Reinforced . | . . . Active Scanning Responses . | . . . Cargo Convoy Interrupts . | . . . Stealth | -11 -10 -9 --------- Run | Yrd Mat Mat Distress Signals 4 | . 1 3 Communications Jammed . | . . . Distress Signals . | . . . Times Spotted 28 | . 9 19 Peak Tracking Total 6 | . 6 5 Tactical Retreats 1 | . 1 . Traps | -11 -10 -9 ------- Run | Yrd Mat Mat Traps Triggered 1 | . . 1 Indirectly . | . . . Trap Hack Attempts . | . . . Triggered . | . . . Disarmed . | . . . Reprogrammed . | . . . Reused . | . . . Traps Extracted . | . . . Installed . | . . . Triggered . | . . . Machines | -11 -10 -9 ---------- Run | Yrd Mat Mat Machines Disabled 1 | . 1 . Max in Single Turn 1 | . 1 . Machines Repaired . | . . . Machines Dismantled . | . . . Machines Sabotaged . | . . . Overloaded Fab Kills . | . . . Hacking | -11 -10 -9 --------- Run | Yrd Mat Mat Machines Accessed 1 | . 1 . Terminals 1 | . 1 . Fabricators . | . . . Repair Stations . | . . . Recycling Units . | . . . Scanalyzers . | . . . Garrison Access . | . . . Total Hacks 2 | . 2 . Successful 1 | . 1 . Failed 1 | . 1 . Catastrophic . | . . . Database Lockouts . | . . . Manual . | . . . Terminals 2 | . 2 . Fabricators . | . . . Repair Stations . | . . . Recycling Units . | . . . Scanalyzers . | . . . Garrison Access . | . . . Terminal Hacks 1 | . 1 . Locate Traps 1 | . 1 . Fabricator Hacks . | . . . Repair Station Hacks . | . . . Recycling Unit Hacks . | . . . Scanalyzer . | . . . Garrison Access Hacks . | . . . Unauthorized Hacks . | . . . Terminals . | . . . Fabricators . | . . . Repair Stations . | . . . Recycling Units . | . . . Scanalyzers . | . . . Garrison Access . | . . . Data Cores Recovered . | . . . Used . | . . . Hacking Detections 1 | . 1 . Full Trace Events . | . . . Feedback Events . | . . . Feedback Blocked . | . . . Robot Schematics Acquired . | . . . Robots Built . | . . . Authchips . | . . . Time . | . . . Total Robot Build Rating . | . . . Part Schematics Acquired . | . . . Parts Built . | . . . Authchips . | . . . Time . | . . . Total Part Build Rating . | . . . Parts Repaired . | . . . Time . | . . . Parts Recycled . | . . . Recycled Matter . | . . . Retrieved Matter . | . . . Retrieved Components . | . . . Parts Scanalyzed . | . . . Part Schematics Acquired . | . . . Parts Damaged . | . . . Bothacking | -11 -10 -9 ------------ Run | Yrd Mat Mat Used RIF Installer . | . . . Robots Hacked . | . . . Non-combat . | . . . Combat . | . . . Robot Hacks Applied . | . . . Relay Couplers Released . | . . . Fabnet Peak Effective % . | . . . Robots Rewired . | . . . Allies Hacked . | . . . Hacks Repelled . | . . . Allies | -11 -10 -9 -------- Run | Yrd Mat Mat Total Allies . | . . . Largest Group . | . . . Highest-Rated Group . | . . . Highest-Rated Ally . | . . . Total Orders . | . . . Ally Attacks . | . . . Total Damage . | . . . Kills . | . . . Allies Corrupted . | . . . Allies Melted . | . . . Intel | -11 -10 -9 ------- Run | Yrd Mat Mat Robot Analysis Total . | . . . Derelict Logs Recovered . | . . . Drone Launches . | . . . Drone Recoveries . | . . . Exploration | -11 -10 -9 ------------- Run | Yrd Mat Mat Turns Passed 950 | 59 307 584 Spaces Moved 408 | 39 198 171 Core 37 | 11 . 26 Treads . | . . . Legs 371 | 28 198 145 Wheels . | . . . Hover . | . . . Flight . | . . . Fastest Speed 50 | 50 120 120 Average Speed 148 | 125 120 187 Slowest Speed 550 | 200 120 550 Overloaded Moves . | . . . Propulsion Burnouts . | . . . Robots Hopped . | . . . Cave-ins Triggered . | . . . Exploration Rate (%) 17 | 4 32 15 Regions Visited 2 Branch Regions . Pre-discovered Areas . | . . . Known Exits Taken . | . . . Unknown Exits Taken 2 | 1 1 . Scrap Searched . | . . . Spaces Dug . | . . . Terrain Destroyed 43 | . 43 . Melee . | . . . Projectile . | . . . AOE 43 | . 43 . Terrain Rammed . | . . . Walls Destroyed . | . . . Machines Disabled . | . . . Actions | -11 -10 -9 --------- Run | Yrd Mat Mat Total 594 | 46 236 312 Wait 89 | . 17 72 Move 406 | 38 197 171 Hop . | . . . Pick Up 5 | 2 3 . Fast Attach 9 | 6 . 3 Attach 2 | . . 2 Detach . | . . . Swap 6 | . 2 4 Drop 1 | . 1 . Fire 56 | . 16 40 Melee . | . . . Ram 17 | . . 17 Kick 3 | . . 3 Crush . | . . . Escape Stasis . | . . . Rewire . | . . . Trap . | . . . Miscellaneous . | . . . Route ------- -11/Scrapyard -10/Materials -9/Materials History --------- Turn | Location | Event 26 | -11/Scrapyard | Discovered new exit (range 14) 60 | -11/Scrapyard | Entered Materials 308 | -10/Materials | Build established: Mutant 335 | -10/Materials | Discovered new exit (range 14) 367 | -10/Materials | Entered another Materials area 367 | -9/Materials | Evolved 2 slots: Propulsion x1, Utility x1 746 | -9/Materials | Lost 4 parts (3n1w) 857 | -9/Materials | Core integrity fell below 50% 916 | -9/Materials | Core integrity fell below 20% 951 | -9/Materials | Destroyed by G-34 Mercenary with Small Laser Last Messages --------------- 00861_ Slammed into G-34 Mercenary. 00861_ Destabilizing: System corrupted (+1). 00868_ M-13 Machinist repairs G-34 Mercenary. 00877_ G-34 Mercenary misfires. 00879_ Slammed into G-34 Mercenary. 00879_ Destabilizing: Core damaged (-16). 00883_ Slammed into G-34 Mercenary. 00889_ G-34 Mercenary misfires. 00892_ Slammed into G-34 Mercenary. 00899_ G-34 Mercenary misfires. 00901_ Slammed into G-34 Mercenary. 00913_ G-34 Mercenary misfires. 00915_ Slammed into G-34 Mercenary. 00921_ G-34 Mercenary IFF system glitched. 00924_ M-13 Machinist repairs G-34 Mercenary. 00925_ G-34 Mercenary misfires. 00931_ K-01 Serf cleans the Recycling Unit. 00937_ Slammed into G-34 Mercenary. 00942_ Slammed into M-13 Machinist. 00942_ Destabilizing: System corrupted (+1). Map ----- +----------------------------------------------------+ | ?????????????????????????????????????????????????? | | ?????????????????????????????????????????????????? | | ?????????????????????????????????????????????????? | | ?????????????????????????????????????????????????? | | ?????????????????????????????????????????????????? | | ?????????????????????????????????????????????????? | | ?????????????????????????????????????????????????? | | ?????????????????????????????????????????????????? | | ?????????????????????????????????????????????????? | | ?????????????????????????????????????????????????? | | ?????????????????????????????????????????????????? | | ?????????????????????????????????????????????????? | | ?????????????????????????????????????????????????? | | ?????????????????????????????????????????????????? | | ?????????????????????????????????????????????????? | | ?????????????????# ?????????????????????????????? | | ????????????????? ????????????????????????????? | | ????????????????? ????????????????????????????? | | ????????????????? ????????????????????????????? | | ????????????????? ????????????????????????????? | | ????????????????? ????????????????????????????? | | ?????????????????# #????????????????????????????? | | ?????????????????# #????????????????????????????? | | ?????????????????# ###########??????????????????? | | ????????########## #%%%%%% #??????????????????? | | ????????? # #%"Y"@% #??????????????? ??? | | ?????????? # #%"""g #??????????????? ??? | | ??????????"""" # #%%% #??????????????? ??? | | ???????? """"" # ##+########??????????????? ??? | | ???????# """"" # %%#???##########????????? ??? | | ???????# # ####### #????????? #?? | | ???????# ""T"" + # # #??##????? #?? | | ???????? """"" # # =# """ """ # #????# #?? | | ??????????######## # # """ """ + #????# #?? | | ?????????????????# # # "" """ # #????# #?? | | ?????????????????# #= # " " # #????# #?? | | ??????????????####%%+%! # # #????# #?? | | ?????????????##! # # # #????# #?? | | ?????????????#! ###########/#/### ###### ### | | ?????????????# | | ?????????????#! | | ?????????????#! | | ?????????????##! #############+####### # # | | ??????????????#### #???????????# # | | ????????????????# #??????????# " # | | ????????????????# #??????????# "" # | | ????????????????# #??????????# "" | | ????????????????# #??????????# """ | | ????????????????## ##??????????# "" | | ?????????????????# #???????????# """ | +----------------------------------------------------+ Best States ------------- Heat Dissipation 28 Energy Generation 10 Energy Capacity 250 Matter Stores 300 Matter Capacity 300 Sight Range 16 Terrain Scan Density 10 Evasion (%) 55 Item Schematics ----------------- None Robot Schematics ------------------ None Fabricated ------------ Nothing Alien Tech Used ----------------- None Achievements -------------- None Challenges ------------ None Game ------ Seed DisposableCarbideMediator Manual? 0 Play Time 00:11:11 Cumulative 9.4 hours Start 2024.08.16 @ 16:54:49 End 2024.08.16 @ 17:05:24 Sessions 1 Manual Loads 0 Difficulty Rogue Special Mode None Game No. 14 Rogue 14 Adventurer 0 Explorer 0 Win Type - Total 0 Types 0/0/0/0/0/0/0/0/0 Lore% 6 Gallery% 12 Achievement% 11 Wizard Run 0 Options --------- Layout 1 ASCII 0 Keyboard 1 Movement Numpad Keybinds 1 Fullscreen 1 Font 32/SmallcapsGlow Map View 50x35 Zoom Use 0% Tactical HUD 1 Map Filters NONE Filters NONE Steam 1 RUN: 255ae03e-ca4b-46c7-b415-086efec8f448